bitfinex-derivatives/quotes_BTCF0:USTF0_20260106
["timestamp","ask_amount","ask_price","bid_price","bid_amount"]
[1767721347132,0.09606283,92311.0,92276.0,0.09216]
[1767721347323,0.09216,92310.0,92277.0,0.09216]
[1767721347523,0.18822283,92310.0,92286.0,0.01084]
[1767721347829,0.09606283,92309.0,92285.0,0.01084]
[1767721348331,0.09606283,92309.0,92287.0,0.01084]
[1767721348528,0.09606283,92309.0,92293.0,0.010839]
[1767721348728,0.09606283,92309.0,92278.0,0.09774479]
[1767721348946,0.09216,92310.0,92267.0,0.09216]
[1767721348947,0.18681897,92301.0,92267.0,0.09216]
[1767721349127,0.09606283,92299.0,92275.0,0.010841]
[1767721349327,0.09606283,92297.0,92277.0,0.010841]
[1767721349621,0.09606283,92297.0,92267.0,0.09216]
[1767721349826,0.09606283,92297.0,92278.0,0.010841]
[1767721350220,0.09606283,92297.0,92268.0,0.010842]
[1767721350221,0.09606283,92297.0,92267.0,0.09216]
[1767721350627,0.09606283,92296.0,92267.0,0.09216]
[1767721351532,0.09606283,92296.0,92267.0,0.089001]
[1767721351731,0.13509018,92311.0,92267.0,0.089001]
[1767721351732,0.13509018,92313.0,92278.0,0.09169021]
[1767721352046,0.10806176,92301.0,92271.0,0.0922]
[1767721352230,0.09722276,92299.0,92271.0,0.0922]
[1767721352617,0.09722276,92299.0,92269.0,0.010842]
[1767721352618,0.09722276,92296.0,92269.0,0.010842]
[1767721352819,0.0922,92300.0,92259.0,0.18389021]
[1767721352820,0.09722276,92294.0,92259.0,0.18389021]
[1767721353029,0.09722276,92291.0,92268.0,0.010842]
[1767721353230,0.0922,92290.0,92268.0,0.010842]
[1767721353622,0.09266887,92289.0,92264.0,0.010843]
[1767721353826,0.09266887,92284.0,92259.0,0.0922]
[1767721354029,0.09717854,92297.0,92239.0,0.010846]
[1767721354030,0.18989163,92281.0,92247.0,0.18389021]
[1767721354238,0.0922,92280.0,92248.0,0.09169021]
[1767721354620,0.0922,92280.0,92258.0,0.010843]
[1767721354826,0.0922,92282.0,92276.0,0.010841]
[1767721355025,0.0922,92282.0,92260.0,0.010843]
[1767721355026,0.09717854,92296.0,92278.0,0.010841]
[1767721355226,0.09722276,92301.0,92261.0,0.09169021]
[1767721355227,0.0922,92295.0,92277.0,0.010841]
[1767721355733,0.18984741,92303.0,92271.0,0.010842]
[1767721355925,0.0922,92302.0,92282.0,0.010841]
[1767721356429,0.09266887,92303.0,92273.0,0.09169021]
[1767721356735,0.0922,92302.0,92286.0,0.01084]
[1767721356925,0.0922,92301.0,92288.0,0.01084]
[1767721357323,0.0922,92304.0,92285.0,0.01084]
[1767721358535,0.010839,92301.0,92279.0,0.0922]
[1767721358732,0.010839,92301.0,92260.0,0.010843]
[1767721358733,0.09266887,92292.0,92255.0,0.09169021]
[1767721358939,0.0922,92291.0,92274.0,0.010842]
[1767721359237,0.0922,92291.0,92271.0,0.010842]
[1767721359421,0.0922,92291.0,92259.0,0.09169021]
[1767721359625,0.0922,92291.0,92273.0,0.010842]
[1767721360135,0.0922,92291.0,92259.0,0.09169021]
[1767721360927,0.09722276,92283.0,92256.0,0.0922]
[1767721361129,0.09266887,92282.0,92260.0,0.010843]
[1767721361438,0.18486887,92281.0,92262.0,0.010843]
[1767721361628,0.09266887,92279.0,92259.0,0.010843]
[1767721361826,0.09266887,92279.0,92247.0,0.010845]
[1767721362131,0.09714767,92288.0,92265.0,0.010843]
[1767721362329,0.09714767,92288.0,92253.0,0.010844]
[1767721362330,0.0922,92288.0,92261.0,0.09169021]
[1767721362527,0.0922,92288.0,92267.0,0.010842]
[1767721362726,0.0922,92288.0,92269.0,0.010842]
[1767721363038,0.0922,92288.0,92271.0,0.010842]
[1767721363236,0.0922,92288.0,92261.0,0.09169021]
[1767721363637,0.0922,92288.0,92271.0,0.010842]
[1767721364030,0.0922,92288.0,92268.0,0.010842]
[1767721364334,0.09266887,92287.0,92266.0,0.010843]
[1767721364532,0.09266887,92287.0,92259.0,0.0922]
[1767721364533,0.0922,92286.0,92260.0,0.09169021]
[1767721364928,0.09266887,92285.0,92263.0,0.010843]
[1767721365232,0.09266887,92285.0,92260.0,0.010843]
[1767721365439,0.18934767,92287.0,92261.0,0.09169021]
[1767721365640,0.0922,92287.0,92265.0,0.010843]
[1767721365835,0.0922,92287.0,92261.0,0.09169021]
[1767721366339,0.18981654,92282.0,92259.0,0.0922]
[1767721366635,0.09266887,92278.0,92251.0,0.0922]
[1767721366935,0.0922,92287.0,92214.0,0.00011827]
[1767721366936,0.09266887,92264.0,92242.0,0.010845]
[1767721367128,0.18934767,92263.0,92244.0,0.010845]
[1767721367334,0.18934767,92263.0,92234.0,0.010846]
[1767721367335,0.09714767,92263.0,92236.0,0.010846]
[1767721367529,0.0922,92264.0,92255.0,0.010844]
[1767721367844,0.0922,92264.0,92233.0,0.092046]
[1767721367845,0.0922,92264.0,92238.0,0.03399691]
[1767721368024,0.18486887,92264.0,92233.0,0.092046]
[1767721368232,0.09266887,92256.0,92224.0,0.0922]
[1767721368432,0.09266887,92253.0,92224.0,0.0922]
[1767721368651,0.09722276,92254.0,92224.0,0.0922]
[1767721368652,0.09714767,92249.0,92230.0,0.010847]
[1767721368832,0.09266887,92251.0,92232.0,0.010847]
[1767721369031,0.0922,92250.0,92232.0,0.010847]
[1767721369241,0.0922,92250.0,92224.0,0.0922]
[1767721369242,0.0922,92250.0,92234.0,0.010846]
[1767721369449,0.09266887,92251.0,92234.0,0.010846]
[1767721369632,0.0922,92250.0,92234.0,0.010846]
[1767721369833,0.0922,92249.0,92234.0,0.010846]
[1767721370232,0.91876,92272.0,92226.0,0.09536309]
[1767721370437,0.0922,92263.0,92232.0,0.010847]
[1767721370638,0.0922,92262.0,92230.0,0.09169021]
[1767721370844,0.0922,92262.0,92241.0,0.010845]
[1767721371240,0.0922,92262.0,92243.0,0.010845]
[1767721371445,0.0922,92262.0,92246.0,0.010845]
[1767721371643,0.0922,92262.0,92233.0,0.010846]
[1767721371644,0.0922,92261.0,92237.0,0.09169021]
[1767721371849,0.01084,92289.0,92246.0,0.010845]
[1767721372142,0.09266887,92287.0,92249.0,0.010845]
[1767721372332,0.09722276,92285.0,92263.0,0.010843]
[1767721372531,0.09266887,92284.0,92268.0,0.010842]
[1767721372746,0.09266887,92284.0,92250.0,0.09169021]
[1767721372943,0.0922,92283.0,92265.0,0.010843]
[1767721373153,0.0922,92283.0,92267.0,0.010842]
[1767721373446,0.09266887,92284.0,92250.0,0.09169021]
[1767721373638,0.09266887,92284.0,92263.0,0.010843]
[1767721373639,0.0922,92284.0,92263.0,0.010843]
[1767721373850,0.0922,92284.0,92261.0,0.010843]
[1767721374140,0.0922,92288.0,92270.0,0.010842]
[1767721374448,0.0922,92289.0,92279.0,0.010841]
[1767721374947,0.09722276,92302.0,92268.0,0.09169021]
[1767721375145,0.09266887,92315.0,92273.0,0.09536309]
[1767721375343,0.36892,92328.0,92289.0,0.01084]
[1767721375344,0.18989163,92313.0,92289.0,0.01084]
[1767721375648,0.09266887,92310.0,92288.0,0.01084]
[1767721375849,0.0922,92309.0,92288.0,0.01084]
[1767721376049,0.18486887,92309.0,92288.0,0.01084]
[1767721376238,0.09266887,92309.0,92288.0,0.01084]
[1767721376437,0.0922,92308.0,92288.0,0.01084]
[1767721376639,0.0922,92307.0,92288.0,0.01084]
[1767721376845,0.09266887,92319.0,92305.0,0.010838]
[1767721377044,0.0922,92318.0,92299.0,0.010839]
[1767721377346,0.0922,92317.0,92305.0,0.010838]
[1767721377535,0.0922,92317.0,92290.0,0.01084]
[1767721377536,0.0922,92317.0,92293.0,0.09956632]
[1767721377738,0.0922,92317.0,92301.0,0.010838]
[1767721378134,0.0922,92316.0,92302.0,0.010838]
[1767721378341,0.010836,92325.0,92293.0,0.09956632]
[1767721378646,0.09160945,92328.0,92268.0,0.010842]
[1767721378647,0.09160945,92303.0,92278.0,0.0922]
[1767721378842,0.0922,92302.0,92282.0,0.010841]
[1767721379042,0.0922,92302.0,92279.0,0.010841]
[1767721379238,0.0922,92302.0,92277.0,0.0922]
[1767721379844,0.0922,92302.0,92280.0,0.010841]
[1767721380058,0.0922,92302.0,92282.0,0.010841]
[1767721380242,0.0922,92302.0,92268.0,0.010842]
[1767721380243,0.18555707,92293.0,92262.0,0.09956632]
[1767721380548,0.18555707,92306.0,92284.0,0.01084]
[1767721380752,0.02676554,92325.0,92262.0,0.09956632]
[1767721380753,0.09394762,92317.0,92281.0,0.09170356]
[1767721381054,0.09160945,92312.0,92282.0,0.0922]
[1767721381254,0.09160945,92312.0,92283.0,0.0922]
[1767721381443,0.0922,92322.0,92300.0,0.1282514]
[1767721381646,0.0922,92325.0,92301.0,0.09284197]
[1767721381949,0.00216594,92339.0,92301.0,0.09284197]
[1767721382157,0.010834,92337.0,92311.0,0.010837]
[1767721382446,0.09757687,92336.0,92302.0,0.09284197]
[1767721382653,0.09757687,92332.0,92302.0,0.09284197]
[1767721382849,0.09757687,92332.0,92302.0,0.06284197]
[1767721382850,0.11323219,92332.0,92302.0,0.06284197]
[1767721383048,0.09581023,92321.0,92281.0,0.09148329]
[1767721383248,0.09757687,92316.0,92282.0,0.0922]
[1767721383440,0.18977687,92315.0,92283.0,0.01084]
[1767721383645,0.010837,92311.0,92285.0,0.01084]
[1767721383944,0.0922,92324.0,92300.0,0.010839]
[1767721384347,0.0922,92324.0,92297.0,0.0922]
[1767721384550,0.09757687,92323.0,92297.0,0.0922]
[1767721385055,0.0922,92324.0,92300.0,0.010838]
[1767721385448,0.010835,92330.0,92300.0,0.010838]
[1767721385751,0.09757687,92333.0,92314.0,0.010837]
[1767721385953,0.0922,92332.0,92306.0,0.09284197]
[1767721386256,0.0922,92332.0,92312.0,0.010837]
[1767721386555,0.0922,92333.0,92309.0,0.010838]
[1767721386949,0.0922,92333.0,92311.0,0.010837]
[1767721387146,0.0922,92333.0,92309.0,0.09284197]
[1767721387147,0.00216594,92339.0,92313.0,0.09284197]
[1767721387346,0.09436594,92339.0,92315.0,0.09284197]
[1767721387548,0.09757687,92334.0,92308.0,0.0922]
[1767721387758,0.09436594,92339.0,92308.0,0.0922]
[1767721387759,0.09436594,92339.0,92322.0,0.010836]
[1767721387965,0.09436594,92339.0,92313.0,0.09284197]
[1767721387966,0.0922,92338.0,92313.0,0.09284197]
[1767721388256,0.0922,92338.0,92308.0,0.103038]
[1767721388257,0.09581023,92336.0,92308.0,0.103038]
[1767721388461,0.09757687,92335.0,92308.0,0.0922]
[1767721388659,0.09757687,92333.0,92308.0,0.0922]
[1767721388964,0.010835,92330.0,92308.0,0.0922]
[1767721389164,0.09757687,92331.0,92308.0,0.0922]
[1767721389367,0.0922,92333.0,92309.0,0.09284197]
[1767721389566,0.0922,92336.0,92311.0,0.09284197]
[1767721389858,0.0922,92336.0,92322.0,0.010836]
[1767721390073,0.00216594,92339.0,92333.0,0.010835]
[1767721390267,0.010827,92402.0,92328.0,0.010835]
[1767721390268,0.0922,92347.0,92328.0,0.010835]
[1767721390459,0.0922,92348.0,92328.0,0.010835]
[1767721390658,0.0922,92348.0,92323.0,0.09284197]
[1767721390952,0.09581023,92359.0,92334.0,0.010835]
[1767721390953,0.010832,92359.0,92334.0,0.010835]
[1767721391162,0.010832,92359.0,92333.0,0.0922]
[1767721391163,0.09757687,92359.0,92333.0,0.0922]
[1767721391363,0.09581023,92358.0,92333.0,0.0922]
[1767721391552,0.010832,92356.0,92333.0,0.0922]
[1767721391758,0.18973687,92355.0,92333.0,0.0922]
[1767721391960,0.09216,92354.0,92333.0,0.0922]
[1767721392563,0.10840987,92350.0,92326.0,0.09216]
[1767721392855,0.09757687,92349.0,92326.0,0.09216]
[1767721393261,0.09757687,92347.0,92326.0,0.09216]
[1767721393553,0.09216,92354.0,92311.0,0.010837]
[1767721393554,0.09581023,92340.0,92311.0,0.010837]
[1767721393758,0.09581023,92340.0,92308.0,0.09216]
[1767721393759,0.010835,92333.0,92308.0,0.09216]
[1767721393973,0.09757687,92335.0,92308.0,0.09216]
[1767721394269,0.09757687,92325.0,92293.0,0.09284197]
[1767721394459,0.09216,92324.0,92302.0,0.010838]
[1767721394654,0.09216,92324.0,92302.0,0.007838]
[1767721394959,0.09216,92324.0,92297.0,0.010839]
[1767721395158,0.09216,92324.0,92293.0,0.09284197]
[1767721395159,0.1933871,92323.0,92294.0,0.010839]
[1767721395364,0.102996,92324.0,92286.0,0.01084]
[1767721395365,0.2042241,92316.0,92286.0,0.01084]
[1767721395581,0.09757687,92314.0,92289.0,0.01084]
[1767721395769,0.09216,92313.0,92289.0,0.01084]
[1767721396269,0.09216,92313.0,92291.0,0.01084]
[1767721396465,0.09216,92313.0,92284.0,0.09284197]
[1767721396671,0.1933871,92305.0,92277.0,0.010841]
[1767721396869,0.09581023,92289.0,92262.0,0.103003]
[1767721397059,0.09757687,92287.0,92262.0,0.103003]
[1767721397258,0.18797023,92288.0,92258.0,0.010843]
[1767721397259,0.18973687,92286.0,92258.0,0.010843]
[1767721397466,0.18973687,92286.0,92260.0,0.010843]
[1767721397666,0.18973687,92286.0,92255.0,0.18500197]
[1767721397972,0.18973687,92286.0,92262.0,0.010843]
[1767721398176,0.010841,92283.0,92255.0,0.18500197]
[1767721398357,0.09581023,92281.0,92255.0,0.09216]
[1767721398563,0.09757687,92278.0,92247.0,0.09216]
[1767721398763,0.00013369,92277.0,92247.0,0.09216]
[1767721398969,0.09757687,92278.0,92247.0,0.09216]
[1767721399365,0.09757687,92278.0,92248.0,0.09284197]
[1767721399569,0.09581023,92289.0,92254.0,0.09284197]
[1767721399763,0.010841,92282.0,92254.0,0.09284197]
[1767721399964,0.09757687,92279.0,92252.0,0.010844]
[1767721400174,0.09216,92278.0,92254.0,0.010844]
[1767721401264,0.09757687,92279.0,92254.0,0.010844]
[1767721401571,0.0922,92278.0,92256.0,0.010844]
[1767721401789,0.0922,92278.0,92253.0,0.010844]
[1767721401966,0.010842,92275.0,92248.0,0.09284197]
[1767721402166,4.028e-05,92274.0,92251.0,0.010844]
[1767721402374,4.028e-05,92274.0,92248.0,0.09284197]
[1767721402375,0.09757687,92277.0,92259.0,0.010843]
[1767721402572,4.028e-05,92273.0,92248.0,0.09284197]
[1767721402876,4.028e-05,92273.0,92247.0,0.09216]
[1767721403370,0.09757687,92277.0,92247.0,0.09216]
[1767721403371,0.09757687,92275.0,92251.0,0.010844]
[1767721403565,0.09757687,92284.0,92257.0,0.010844]
[1767721403765,0.09757687,92283.0,92253.0,0.010844]
[1767721403965,0.09757687,92281.0,92256.0,0.010844]
[1767721404172,0.0922,92280.0,92248.0,0.09284197]
[1767721404368,0.09581023,92284.0,92248.0,0.09284197]
[1767721404369,4.028e-05,92279.0,92261.0,0.010843]
[1767721404773,4.028e-05,92279.0,92247.0,0.09216]
[1767721404774,0.09757687,92278.0,92247.0,0.09216]
[1767721404964,0.09757687,92276.0,92247.0,0.09216]
[1767721405270,0.09757687,92276.0,92256.0,0.010844]
[1767721405775,0.09757687,92275.0,92247.0,0.09216]
[1767721406072,0.09757687,92271.0,92253.0,0.010844]
[1767721406283,0.09224028,92270.0,92253.0,0.010844]
[1767721406462,4.028e-05,92270.0,92248.0,0.09284197]
[1767721406668,0.0922,92290.0,92282.0,0.010841]
[1767721406872,0.09581023,92305.0,92262.0,0.09148329]
[1767721406873,0.0922,92296.0,92285.0,0.01084]
[1767721407072,0.1933871,92305.0,92278.0,0.09284197]
[1767721407073,0.0922,92305.0,92278.0,0.09284197]
[1767721407376,0.0922,92314.0,92288.0,0.09284197]
[1767721407763,0.010839,92301.0,92288.0,0.09284197]
[1767721407971,0.09757687,92304.0,92273.0,0.0922]
[1767721408164,0.0922,92303.0,92276.0,0.09284197]
[1767721408373,0.09757687,92313.0,92281.0,0.09284197]
[1767721408563,0.0922,92312.0,92285.0,0.09284197]
[1767721408764,0.0922,92312.0,92284.0,0.10304]
[1767721408765,0.09757687,92310.0,92284.0,0.10304]
[1767721409076,0.09757687,92309.0,92287.0,0.01084]
[1767721409478,0.0922,92308.0,92289.0,0.01084]
[1767721409680,0.0922,92308.0,92279.0,0.0922]
[1767721409978,0.0922,92307.0,92288.0,0.01084]
[1767721410177,0.09757687,92300.0,92279.0,0.0922]
[1767721410480,0.09757687,92297.0,92271.0,0.0762]
[1767721410883,0.01576067,92315.0,92271.0,0.0762]
[1767721410884,0.09757687,92306.0,92272.0,0.09284197]
[1767721411180,0.0922,92305.0,92283.0,0.010841]
[1767721411372,0.0922,92305.0,92272.0,0.09284197]
[1767721411572,0.103038,92305.0,92280.0,0.010841]
[1767721411767,0.010838,92303.0,92277.0,0.010841]
[1767721411980,0.1912095,92305.0,92272.0,0.09284197]
[1767721412281,0.1912095,92305.0,92271.0,0.0762]
[1767721412282,0.1912095,92304.0,92275.0,0.09352556]
[1767721412487,0.0990095,92300.0,92271.0,0.0762]
[1767721412778,0.09427352,92299.0,92276.0,0.010841]
[1767721413575,0.10511252,92299.0,92273.0,0.010842]
[1767721413778,0.0922,92303.0,92255.0,0.09352556]
[1767721413779,0.09427352,92287.0,92255.0,0.09352556]
[1767721414085,0.0922,92286.0,92267.0,0.010842]
[1767721414380,0.18647352,92286.0,92256.0,0.0922]
[1767721414582,0.010839,92294.0,92268.0,0.010842]
[1767721414784,0.1912095,92293.0,92268.0,0.010842]
[1767721415082,0.0990095,92292.0,92268.0,0.010842]
[1767721415282,0.0990095,92292.0,92270.0,0.010842]
[1767721415673,0.1098495,92290.0,92257.0,0.09352556]
[1767721415873,0.1098495,92290.0,92264.0,0.010843]
[1767721416477,0.20412302,92290.0,92264.0,0.010843]
[1767721416677,0.09427352,92288.0,92261.0,0.010843]
[1767721416978,0.19328302,92285.0,92261.0,0.010843]
[1767721417384,0.19328302,92285.0,92264.0,0.010843]
[1767721417682,0.10258302,92285.0,92264.0,0.010843]
[1767721418076,0.10258302,92285.0,92257.0,0.09352556]
[1767721418077,0.09427352,92285.0,92257.0,0.09352556]
[1767721418281,0.09427352,92285.0,92269.0,0.010842]
[1767721418577,0.09427352,92285.0,92266.0,0.010843]
[1767721418882,0.0922,92293.0,92256.0,0.0922]
[1767721418883,0.09427352,92277.0,92256.0,0.0922]
[1767721419086,0.0922,92282.0,92256.0,0.0922]
[1767721419879,0.0922,92282.0,92248.0,0.09474242]
[1767721419880,0.09427352,92269.0,92248.0,0.0922]
[1767721420071,0.09427352,92268.0,92248.0,0.0922]
[1767721420275,0.09427352,92267.0,92248.0,0.0922]
[1767721420477,0.09427352,92277.0,92244.0,0.09352556]
[1767721420781,0.0922,92276.0,92251.0,0.09352556]
[1767721421083,0.01084,92290.0,92258.0,0.010843]
[1767721421084,0.09427352,92274.0,92258.0,0.010843]
[1767721421283,0.09427352,92274.0,92251.0,0.09352556]
[1767721421284,0.0922,92273.0,92254.0,0.010844]
[1767721421479,0.0922,92273.0,92242.0,0.09352556]
[1767721421480,0.0990095,92269.0,92242.0,0.09352556]
[1767721421788,0.0922,92268.0,92255.0,0.010844]
[1767721421981,0.09427352,92276.0,92252.0,0.010844]
[1767721422288,0.18647352,92275.0,92252.0,0.010844]
[1767721422591,0.09427352,92274.0,92254.0,0.010844]
[1767721422979,0.09427352,92274.0,92256.0,0.010844]
[1767721423187,0.09427352,92273.0,92256.0,0.010844]
[1767721423387,0.09427352,92273.0,92243.0,0.010845]
[1767721423388,0.0922,92272.0,92260.0,0.010843]
[1767721423592,0.0922,92271.0,92249.0,0.09352556]
[1767721423775,0.0922,92270.0,92249.0,0.09352556]
[1767721424280,0.0922,92270.0,92264.0,0.010843]
[1767721424600,0.0922,92270.0,92249.0,0.09352556]
[1767721424603,0.0922,92270.0,92258.0,0.010843]
[1767721424791,0.0922,92270.0,92260.0,0.010843]
[1767721425181,0.0922,92270.0,92259.0,0.010843]
[1767721426090,0.0922,92270.0,92249.0,0.08436956]
[1767721426275,0.09427352,92268.0,92243.0,0.010845]
[1767721426478,0.0922,92270.0,92241.0,0.0922]
[1767721426479,0.09427352,92264.0,92241.0,0.0922]
[1767721426884,0.09427352,92264.0,92248.0,0.010845]
[1767721427380,0.09427352,92264.0,92241.0,0.0922]
[1767721427381,0.09427352,92264.0,92231.0,0.09474242]
[1767721427598,0.09427352,92264.0,92218.0,0.010848]
[1767721427599,0.09427352,92235.0,92196.0,0.09474242]
[1767721427889,0.0990095,92237.0,92208.0,0.010849]
[1767721427890,0.0922,92234.0,92208.0,0.010849]
[1767721428184,0.0922,92234.0,92214.0,0.010849]
[1767721428591,0.09427352,92233.0,92214.0,0.010849]
[1767721428979,0.0922,92234.0,92209.0,0.09352556]
[1767721429289,0.0990095,92243.0,92226.0,0.010847]
[1767721429587,0.0922,92242.0,92217.0,0.09352556]
[1767721429791,0.0922,92242.0,92226.0,0.010847]
[1767721429979,0.11520738,92243.0,92217.0,0.09352556]
[1767721430180,0.09427352,92250.0,92209.0,0.10559142]
[1767721430181,0.09427352,92250.0,92223.0,0.09352556]
[1767721430379,0.1801,92314.0,92218.0,0.010848]
[1767721430380,0.09224,92260.0,92252.0,0.010844]
[1767721430585,0.09224,92260.0,92227.0,0.09474242]
[1767721430586,0.09224,92265.0,92238.0,0.09352556]
[1767721430802,0.09224,92265.0,92253.0,0.010844]
[1767721430989,0.09427352,92271.0,92253.0,0.010844]
[1767721430990,0.09224,92264.0,92253.0,0.010844]
[1767721431387,0.09224,92264.0,92249.0,0.010845]
[1767721431587,0.1098505,92280.0,92252.0,0.010844]
[1767721431790,0.09224,92279.0,92252.0,0.010844]
[1767721432179,0.11482684,92280.0,92249.0,0.09352556]
[1767721432385,0.09224,92279.0,92253.0,0.09352556]
[1767721432692,0.11482684,92280.0,92259.0,0.010843]
[1767721432897,0.01581734,92280.0,92273.0,0.010842]
[1767721433086,0.09427352,92280.0,92257.0,0.010844]
[1767721433485,0.11059115,92280.0,92257.0,0.010844]
[1767721433696,0.11059115,92280.0,92252.0,0.08636956]
[1767721433891,0.22044165,92280.0,92252.0,0.08636956]
[1767721434096,0.09427352,92278.0,92253.0,0.010844]
[1767721434297,0.09427352,92278.0,92252.0,0.08636956]
[1767721434589,0.09427352,92277.0,92252.0,0.08636956]
[1767721434985,0.09427352,92277.0,92256.0,0.010844]
[1767721435191,0.09427352,92277.0,92258.0,0.010843]
[1767721435700,0.09427352,92277.0,92252.0,0.08636956]
[1767721436588,0.09427352,92277.0,92236.0,0.010846]
[1767721436589,0.0990095,92276.0,92242.0,0.09352556]
[1767721436896,0.09427352,92272.0,92242.0,0.10437056]
[1767721437097,0.09224,92271.0,92248.0,0.010845]
[1767721437398,0.09224,92271.0,92253.0,0.010844]
[1767721437599,0.09224,92271.0,92255.0,0.010844]
[1767721437896,0.01631763,92280.0,92249.0,0.0975299]
[1767721437897,0.09723967,92277.0,92249.0,0.0975299]
[1767721438096,0.09564781,92298.0,92268.0,0.0975299]
[1767721438293,0.09224,92297.0,92282.0,0.010841]
[1767721438597,0.09224,92297.0,92262.0,0.09224]
[1767721438598,0.01524193,92298.0,92289.0,0.01084]
[1767721438785,0.09224,92299.0,92279.0,0.0975299]
[1767721438989,0.09564781,92307.0,92287.0,0.01084]
[1767721439294,0.09224,92306.0,92287.0,0.01084]
[1767721439495,0.09564781,92307.0,92287.0,0.01084]
[1767721439496,0.11071442,92307.0,92287.0,0.01084]
[1767721439801,0.01506661,92307.0,92290.0,0.01084]
[1767721439988,0.09224,92306.0,92290.0,0.01084]
[1767721440190,0.09224,92306.0,92268.0,0.010842]
[1767721440191,0.09723967,92296.0,92263.0,0.19480951]
[1767721440405,0.09723967,92296.0,92244.0,0.010845]
[1767721440406,0.09686735,92303.0,92269.0,0.0975299]
[1767721440701,0.09686735,92304.0,92287.0,0.01084]
[1767721440995,0.0922,92303.0,92287.0,0.01084]
[1767721441197,0.18943967,92303.0,92280.0,0.010841]
[1767721441396,0.0997516,92302.0,92277.0,0.0792]
[1767721441697,0.09686735,92305.0,92283.0,0.09005916]
[1767721441897,0.09686735,92305.0,92288.0,0.01084]
[1767721442084,0.09686735,92309.0,92283.0,0.09005916]
[1767721442285,0.1105886,92314.0,92283.0,0.09005916]
[1767721442286,0.09686735,92310.0,92297.0,0.010839]
[1767721442489,0.09686735,92310.0,92291.0,0.09005916]
[1767721442490,0.09686735,92311.0,92291.0,0.09005916]
[1767721442689,0.0922,92314.0,92302.0,0.010838]
[1767721442889,0.0922,92314.0,92287.0,0.0922]
[1767721442890,0.0922,92314.0,92287.0,0.18855599]
[1767721443086,0.18384173,92314.0,92287.0,0.0922]
[1767721443394,0.18384173,92314.0,92262.0,0.010843]
[1767721443395,0.19139333,92294.0,92272.0,0.1203]
[1767721443595,0.0922,92293.0,92277.0,0.010841]
[1767721443993,0.0922,92293.0,92273.0,0.010842]
[1767721444289,0.09164173,92292.0,92260.0,0.0922]
[1767721444499,0.09164173,92287.0,92260.0,0.0922]
[1767721444689,0.20223333,92286.0,92261.0,0.010843]
[1767721444902,0.19139333,92285.0,92261.0,0.010843]
[1767721445093,0.09164173,92282.0,92261.0,0.010843]
[1767721445400,0.09164173,92282.0,92263.0,0.010843]
[1767721445401,0.0922,92281.0,92263.0,0.010843]
[1767721445601,0.0922,92281.0,92265.0,0.010843]
[1767721445798,0.0922,92281.0,92253.0,0.0922]
[1767721445999,0.09164173,92280.0,92253.0,0.0922]
[1767721446303,0.1919516,92281.0,92253.0,0.0922]
[1767721446304,0.09164173,92278.0,92253.0,0.0922]
[1767721446494,0.09164173,92278.0,92259.0,0.010843]
[1767721447089,0.09164173,92273.0,92245.0,0.0922]
[1767721447302,0.0922,92281.0,92243.0,0.010845]
[1767721447303,0.09164173,92269.0,92243.0,0.010845]
[1767721447505,0.0922,92268.0,92257.0,0.010844]
[1767721448317,0.0922,92268.0,92242.0,0.0922]
[1767721448499,0.18384173,92268.0,92242.0,0.0922]
[1767721449008,0.0922,92267.0,92250.0,0.010844]
[1767721449194,0.0922,92267.0,92242.0,0.0922]
[1767721449195,0.09164173,92264.0,92242.0,0.090045]
[1767721449698,0.09164173,92264.0,92252.0,0.010844]
[1767721450999,0.09164173,92264.0,92242.0,0.090045]
[1767721451210,6.7e-07,92294.0,92249.0,0.09635599]
[1767721451504,0.0922,92293.0,92284.0,0.01084]
[1767721451706,0.07116819,92293.0,92282.0,0.010841]
[1767721451902,0.0997516,92299.0,92282.0,0.010841]
[1767721452101,0.0922,92292.0,92279.0,0.010841]
[1767721452306,0.1105906,92299.0,92279.0,0.010841]
[1767721452503,0.0922,92298.0,92279.0,0.010841]
[1767721452900,0.0922,92298.0,92272.0,0.09005916]
[1767721453298,0.09164173,92304.0,92274.0,0.09005916]
[1767721453498,0.0922,92303.0,92274.0,0.09005916]
[1767721453701,0.0997516,92308.0,92278.0,0.09005916]
[1767721453901,0.0922,92307.0,92288.0,0.01084]
[1767721454105,0.19139333,92301.0,92278.0,0.0922]
[1767721454305,0.0997516,92298.0,92278.0,0.103041]
[1767721454515,0.010839,92301.0,92278.0,0.103041]
[1767721454516,0.0922,92307.0,92278.0,0.0922]
[1767721454802,0.010839,92300.0,92279.0,0.09005916]
[1767721455003,0.010839,92300.0,92278.0,0.0922]
[1767721455004,0.010839,92299.0,92278.0,0.0922]
[1767721455304,0.0997516,92298.0,92279.0,0.010841]
[1767721456011,0.0997516,92298.0,92284.0,0.01084]
[1767721456201,0.0997516,92298.0,92281.0,0.010841]
[1767721456910,0.0997516,92298.0,92278.0,0.0922]
[1767721457210,0.0997516,92295.0,92281.0,0.010841]
[1767721457412,0.0997516,92303.0,92281.0,0.010841]
[1767721457915,0.08947579,92302.0,92281.0,0.010841]
[1767721458105,0.0997516,92301.0,92281.0,0.010841]
[1767721458410,0.0997516,92296.0,92267.0,0.0922]
[1767721458607,0.0997516,92288.0,92255.0,0.010844]
[1767721458906,0.0997516,92286.0,92265.0,0.010843]
[1767721459110,0.0922,92285.0,92272.0,0.010842]
[1767721459413,0.0922,92285.0,92273.0,0.010842]
[1767721459602,0.0997516,92286.0,92261.0,0.09005916]
[1767721459603,0.0997516,92286.0,92263.0,0.010843]
[1767721459804,0.1105906,92295.0,92274.0,0.010842]
[1767721460109,0.0922,92294.0,92274.0,0.010842]
[1767721460313,0.09724976,92291.0,92274.0,0.010842]
[1767721460811,0.09724976,92290.0,92273.0,0.010842]
[1767721461010,0.09724976,92290.0,92275.0,0.010841]
[1767721461205,0.09724976,92290.0,92277.0,0.010841]
[1767721461806,0.0997516,92289.0,92272.0,0.010842]
[1767721462009,0.0997516,92288.0,92267.0,0.0922]
[1767721462506,0.0997516,92288.0,92269.0,0.010842]
[1767721462810,0.19700136,92288.0,92260.0,0.18225916]
[1767721463013,0.19700136,92288.0,92260.0,0.09435576]
[1767721463415,0.19139333,92282.0,92260.0,0.0042966]